bitfinex-derivatives/quotes_SOLF0:USTF0_20250516
["timestamp","ask_amount","ask_price","bid_price","bid_amount"]
[1747402854474,10.38524489,173.73,173.59,105.61706892]
[1747402854679,5.7546,173.7,173.64,5.7562]
[1747402854883,5.7546,173.7,173.57,73.90524489]
[1747402855080,5.7546,173.7,173.65,1.151742]
[1747402855379,1.8149,173.72,173.65,1.151742]
[1747402855581,1.9603,173.75,173.65,1.151742]
[1747402855776,126.76,173.74,173.66,10.38524489]
[1747402855976,126.76,173.74,173.66,12.24524489]
[1747402856173,126.76,173.74,173.66,13.39692057]
[1747402856478,126.76,173.74,173.73,5.7535]
[1747402856675,497.04,173.76,173.66,13.39692057]
[1747402856876,127.28,173.75,173.66,13.39692057]
[1747402857076,133.0329,173.75,173.66,3.01167568]
[1747402857380,133.0329,173.75,173.7,5.7543]
[1747402857582,5.7532,173.74,173.7,5.7543]
[1747402857773,127.28,173.75,173.66,3.01167568]
[1747402858576,127.28,173.75,173.66,1.86]
[1747402859085,127.28,173.75,173.69,5.7545]
[1747402859284,5.7537,173.73,173.66,1.86]
[1747402859484,127.28,173.75,173.66,1.86]
[1747402859783,133.0329,173.75,173.66,1.86]
[1747402860081,497.04,173.76,173.66,1.86]
[1747402860283,127.34,173.75,173.66,1.86]
[1747402860783,127.34,173.75,173.64,1.86]
[1747402860982,1.9324,173.74,173.64,1.86]
[1747402861175,1.9324,173.74,173.61,65.1685]
[1747402861381,5.7554,173.68,173.61,1.9285]
[1747402861580,127.34,173.67,173.61,1.9285]
[1747402862087,127.34,173.67,173.64,5.7563]
[1747402862284,127.34,173.67,173.61,1.9285]
[1747402862685,127.34,173.67,173.64,5.7562]
[1747402862887,127.34,173.67,173.61,1.9285]
[1747402863184,127.34,173.67,173.57,145.8074442]
[1747402863483,127.34,173.67,173.57,65.3505]
[1747402864387,127.34,173.67,173.56,1.8119]
[1747402864686,5.7567,173.64,173.54,1.9436]
[1747402865588,5.7568,173.63,173.54,1.9436]
[1747402865884,127.48,173.62,173.54,1.9436]
[1747402866385,127.48,173.62,173.61,5.7575]
[1747402866683,127.48,173.62,173.54,1.9436]
[1747402866984,127.48,173.62,173.52,3.8216]
[1747402867173,1.8997,173.66,173.53,1.15253846]
[1747402867377,5.7574,173.62,173.53,1.15253846]
[1747402867578,127.34,173.65,173.58,5.7582]
[1747402867784,127.34,173.65,173.53,1.15253846]
[1747402868085,127.32,173.64,173.53,1.15253846]
[1747402868683,127.32,173.64,173.57,5.7588]
[1747402868885,5.7577,173.61,173.57,5.7588]
[1747402869080,127.32,173.64,173.53,1.15253846]
[1747402869287,127.32,173.64,173.59,5.7581]
[1747402869486,5.7574,173.62,173.53,1.15253846]
[1747402869674,127.32,173.64,173.53,1.15253846]
[1747402869880,497.44,173.65,173.53,1.15253846]
[1747402870079,127.46,173.64,173.53,1.15253846]
[1747402870387,127.46,173.63,173.52,3.8216]
[1747402871684,5.7575,173.61,173.52,3.8216]
[1747402871986,127.46,173.63,173.52,3.8216]
[1747402872779,5.7576,173.61,173.52,3.8216]
[1747402872981,127.46,173.63,173.52,3.8216]
[1747402873481,5.7577,173.61,173.57,5.7585]
[1747402873687,127.46,173.63,173.52,3.8216]
[1747402873993,5.7571,173.62,173.59,5.7579]
[1747402874490,127.46,173.63,173.6,5.7578]
[1747402874885,127.46,173.63,173.52,3.8216]
[1747402875392,127.26,173.62,173.52,3.8216]
[1747402875581,127.26,173.62,173.53,63.7]
[1747402875786,63.56,173.62,173.61,5.7575]
[1747402876494,497.44,173.65,173.64,5.7565]
[1747402876695,127.18,173.65,173.55,16.6369442]
[1747402876887,127.18,173.65,173.54,63.56]
[1747402877383,127.18,173.65,173.54,73.9697816]
[1747402877588,132.9363,173.65,173.54,73.9697816]
[1747402878190,69.3163,173.65,173.54,73.9697816]
[1747402878396,63.58,173.64,173.54,73.9697816]
[1747402878794,63.58,173.64,173.6,5.7578]
[1747402879299,63.58,173.64,173.54,73.9697816]
[1747402879496,5.7574,173.62,173.58,5.7584]
[1747402881496,63.58,173.64,173.54,63.56]
[1747402881701,10.4097816,173.63,173.52,3.8216]
[1747402881995,12.3853816,173.63,173.52,3.8216]
[1747402882389,5.7581,173.59,173.52,3.8216]
[1747402882593,63.4,173.58,173.54,5.7596]
[1747402882994,69.1585,173.58,173.54,5.7596]
[1747402883196,63.4,173.58,173.5,65.4277]
[1747402883500,63.4,173.58,173.48,10.4097816]
[1747402883694,63.4,173.58,173.52,5.7603]
[1747402884090,63.4,173.58,173.46,132.6555]
[1747402884292,10.4097816,173.57,173.49,5.7612]
[1747402884492,12.2305816,173.57,173.42,63.56]
[1747402884896,10.4097816,173.54,173.42,63.56]
[1747402885196,128.905,173.53,173.42,63.56]
[1747402885496,128.905,173.53,173.45,5.7625]
[1747402885690,128.905,173.53,173.42,63.56]
[1747402885902,5.7617,173.49,173.42,63.56]
[1747402886093,126.96,173.48,173.42,63.56]
[1747402886400,126.96,173.48,173.4,73.8697816]
[1747402886590,126.96,173.48,173.45,5.7625]
[1747402887090,126.96,173.48,173.41,1.15333602]
[1747402887290,126.96,173.48,173.47,5.7621]
[1747402887497,1.885,173.53,173.41,17.83718401]
[1747402887796,65.265,173.53,173.41,1.15333602]
[1747402888197,5.7621,173.48,173.44,5.7629]
[1747402888393,63.38,173.47,173.44,5.7629]
[1747402888796,63.38,173.47,173.41,1.15333602]
[1747402889901,63.38,173.47,173.43,5.7634]
[1747402890199,63.38,173.47,173.41,1.15333602]
[1747402890897,5.7633,173.44,173.41,1.15333602]
[1747402891299,63.38,173.47,173.41,1.15333602]
[1747402891800,65.2611,173.47,173.41,1.15333602]
[1747402892397,1.8455,173.46,173.3,65.3333]
[1747402892994,5.7638,173.42,173.3,65.3333]
[1747402893195,126.8,173.41,173.3,65.3333]
[1747402893499,126.8,173.41,173.31,63.4]
[1747402893898,126.8,173.41,173.37,5.7652]
[1747402894603,132.5642,173.41,173.37,5.7652]
[1747402894902,126.8,173.41,173.38,5.765]
[1747402895296,126.8,173.41,173.31,63.4]
[1747402895496,63.4,173.41,173.31,63.4]
[1747402895804,63.4,173.41,173.38,5.765]
[1747402896101,63.4,173.41,173.31,63.4]
[1747402896302,63.4,173.41,173.37,5.7653]
[1747402896805,63.4,173.41,173.36,5.7657]
[1747402897003,63.4,173.41,173.31,63.4]
[1747402897302,5.765,173.39,173.31,63.4]
[1747402897506,63.4,173.38,173.3,65.3333]
[1747402898098,1.8574,173.45,173.3,65.3333]
[1747402898302,126.82,173.44,173.3,65.3333]
[1747402898502,5.7638,173.42,173.38,5.7649]
[1747402898701,5.7638,173.42,173.31,63.42]
[1747402898901,126.82,173.44,173.31,63.42]
[1747402899110,5.7636,173.43,173.31,63.42]
[1747402899402,126.82,173.44,173.31,63.42]
[1747402900107,126.82,173.44,173.3,65.3333]
[1747402900808,5.7641,173.41,173.3,65.3333]
[1747402901106,126.82,173.44,173.3,65.3333]
[1747402901499,126.82,173.44,173.3,1.9333]
[1747402901810,126.82,173.44,173.34,5.7664]
[1747402902209,126.82,173.44,173.3,1.9333]
[1747402902405,5.765,173.39,173.35,5.7659]
[1747402902609,126.86,173.38,173.3,1.9333]
[1747402902910,126.86,173.38,173.35,5.7661]
[1747402903213,126.86,173.38,173.3,1.9333]
[1747402903409,5.7656,173.37,173.3,1.9333]
[1747402903907,132.6253,173.38,173.35,5.766]
[1747402904105,126.86,173.38,173.3,1.9333]
[1747402904510,5.766,173.36,173.3,1.9333]
[1747402904713,126.86,173.38,173.27,67.2682]
[1747402905105,5.7663,173.35,173.32,5.7668]
[1747402905300,126.86,173.38,173.27,67.2682]
[1747402905712,5.766,173.36,173.33,5.7665]
[1747402905906,126.86,173.38,173.26,624.64]
[1747402906911,5.7655,173.37,173.34,5.7662]
[1747402907105,5.7655,173.37,173.26,126.86]
[1747402907306,126.86,173.38,173.26,126.86]
[1747402907500,5.7661,173.35,173.26,126.86]
[1747402907706,126.86,173.38,173.26,63.44]
[1747402907912,126.86,173.38,173.26,126.86]
[1747402908613,5.7655,173.37,173.26,126.86]
[1747402908811,1.8529,173.39,173.26,126.86]
[1747402909014,126.88,173.36,173.26,126.86]
[1747402910210,126.88,173.36,173.35,5.7661]
[1747402911013,5.7653,173.38,173.36,5.7658]
[1747402911312,63.46,173.37,173.26,138.398]
[1747402911509,63.46,173.37,173.26,74.978]
[1747402911710,63.46,173.37,173.26,63.44]
[1747402911901,5.7667,173.34,173.26,63.44]
[1747402912103,63.42,173.34,173.26,63.44]
[1747402912612,63.42,173.34,173.32,5.7668]
[1747402913315,63.42,173.34,173.33,5.7668]
[1747402913817,63.42,173.34,173.26,63.44]
[1747402914020,69.1864,173.34,173.26,63.44]
[1747402914919,5.767,173.33,173.26,63.44]
[1747402915711,63.46,173.33,173.26,63.44]
[1747402915916,63.46,173.33,173.32,5.7671]
[1747402916420,63.46,173.33,173.31,5.7673]
[1747402916609,63.46,173.33,173.23,5.5624]
[1747402917312,5.7676,173.31,173.28,5.7682]
[1747402917519,63.46,173.33,173.23,5.5624]
[1747402917816,5.7672,173.32,173.23,5.5624]
[1747402918117,63.46,173.33,173.23,5.5624]
[1747402918319,69.2271,173.33,173.23,5.5624]
[1747402918717,5.7671,173.33,173.23,5.5624]
[1747402918916,126.84,173.32,173.23,5.5624]
[1747402919423,126.84,173.32,173.3,5.7675]
[1747402920018,132.6072,173.32,173.23,5.5624]
[1747402920316,126.84,173.32,173.23,5.5624]
[1747402920625,5.7683,173.29,173.26,5.7689]
[1747402920816,126.84,173.32,173.22,63.42]
[1747402921217,5.768,173.3,173.22,63.42]
[1747402921722,5.7685,173.28,173.25,5.7692]
[1747402921919,69.1885,173.28,173.25,5.7692]
[1747402922112,132.6085,173.28,173.25,5.7692]
[1747402922320,126.84,173.28,173.19,3.779]
[1747402922924,5.7689,173.27,173.24,5.7696]
[1747402923927,126.84,173.28,173.19,3.779]
[1747402924919,126.86,173.28,173.19,14.22398072]
[1747402925120,126.86,173.28,173.27,5.7688]
[1747402925321,63.44,173.3,173.2,63.42]
[1747402925622,63.44,173.3,173.28,5.7682]
[1747402926020,63.44,173.3,173.29,5.7681]
[1747402926422,63.44,173.31,173.21,10.44498072]
[1747402927021,63.44,173.31,173.2,63.42]
[1747402927227,63.44,173.31,173.21,10.44498072]
[1747402927620,69.2076,173.31,173.28,5.7681]
[1747402927930,69.2076,173.31,173.21,10.44498072]
[1747402928629,63.44,173.31,173.29,5.7679]
[1747402929031,63.44,173.31,173.21,10.44498072]
[1747402929229,69.2076,173.31,173.21,10.44498072]
[1747402929527,63.44,173.31,173.21,10.44498072]
[1747402929929,63.44,173.31,173.29,5.7679]
[1747402931532,63.44,173.31,173.21,10.44498072]
[1747402932328,63.44,173.31,173.3,5.7678]
[1747402932833,63.44,173.31,173.29,5.768]
[1747402933529,63.44,173.31,173.3,5.7678]
[1747402934635,63.44,173.31,173.29,5.768]
[1747402934946,126.86,173.32,173.2,63.42]
[1747402935236,5.768,173.3,173.2,63.42]
[1747402935738,5.768,173.3,173.27,5.7685]
[1747402935939,126.86,173.32,173.2,63.42]
[1747402936341,126.86,173.32,173.19,77.66398072]
[1747402936640,10.44498072,173.31,173.19,67.219]
[1747402936837,16.12498072,173.31,173.23,5.77]
[1747402937138,16.12498072,173.31,173.19,3.779]
[1747402937437,5.7693,173.26,173.19,3.779]
[1747402937639,132.6093,173.26,173.19,3.779]
[1747402938031,132.6093,173.26,173.23,5.7701]
[1747402938738,126.84,173.26,173.24,5.7698]
[1747402939231,126.84,173.26,173.16,65.3005]
[1747402939432,132.6092,173.26,173.16,65.3005]
[1747402940038,132.6092,173.26,173.23,5.7698]
[1747402940339,126.84,173.26,173.23,5.7698]
[1747402940739,126.84,173.26,173.24,5.7697]
[1747402941135,126.84,173.26,173.16,65.3005]
[1747402941437,126.84,173.26,173.25,5.7694]
[1747402942633,126.84,173.26,173.24,5.7696]
[1747402942829,5.68,173.31,173.18,10.44498072]
[1747402943034,5.7686,173.28,173.25,5.7692]
[1747402943341,126.84,173.3,173.18,10.44498072]
[1747402943637,5.7691,173.26,173.23,5.7698]
[1747402943842,63.44,173.26,173.18,10.44498072]
[1747402944043,126.84,173.26,173.18,10.44498072]
[1747402944243,126.84,173.26,173.25,5.7694]
[1747402945142,5.7683,173.29,173.26,5.7689]
[1747402945441,63.44,173.28,173.26,5.7689]
[1747402945743,63.44,173.28,173.27,5.7688]
[1747402945944,63.44,173.29,173.19,63.44]
[1747402946244,126.84,173.29,173.2,63.4]
[1747402946437,126.84,173.29,173.27,5.7685]
[1747402946636,126.84,173.29,173.21,10.44498072]
[1747402947044,132.6083,173.29,173.26,5.7688]
[1747402947445,126.84,173.29,173.2,63.4]
[1747402947850,126.84,173.29,173.19,63.44]
[1747402948144,5.7693,173.26,173.23,5.7698]
[1747402948344,126.84,173.29,173.23,5.7698]
[1747402948542,126.84,173.29,173.22,5.7702]
[1747402949040,5.7697,173.25,173.21,5.7705]
[1747402949240,132.5497,173.25,173.21,5.7705]
[1747402949441,132.5497,173.25,173.16,75.74548072]
[1747402950049,132.5497,173.25,173.22,5.7703]
[1747402950244,5.7699,173.24,173.16,75.74548072]
[1747402950544,5.7699,173.24,173.21,5.7705]
[1747402950741,126.78,173.25,173.16,12.34548072]
[1747402950941,5.7701,173.23,173.16,1.9005]
[1747402951143,5.7701,173.23,173.15,173.10969505]
[1747402951144,126.78,173.25,173.15,173.10969505]
[1747402951335,5.7706,173.22,173.15,109.72969505]
[1747402951644,63.38,173.21,173.15,109.72969505]
[1747402951846,132.531,173.21,173.15,107.80379505]
[1747402952046,126.76,173.21,173.15,105.88019505]
[1747402952248,126.76,173.21,173.15,111.65289505]
[1747402952740,126.76,173.21,173.15,5.7727]
[1747402952945,5.7721,173.18,173.14,5.773]
[1747402953243,126.78,173.17,173.14,5.773]
[1747402953440,126.78,173.17,173.15,5.7727]
[1747402954140,126.78,173.17,173.05,3.8349]
[1747402954353,5.7739,173.12,173.02,105.95579949]
[1747402954654,126.78,173.11,173.02,105.95579949]
[1747402954853,5.7753,173.08,173.02,105.95579949]
[1747402955147,126.78,173.07,172.99,3.9284]
[1747402955347,63.4,173.06,172.99,3.9284]
[1747402956043,63.4,173.06,172.92,73.84498072]
[1747402956247,63.4,173.06,172.94,1.948]
[1747402956453,5.7764,173.04,172.94,1.948]
[1747402956642,5.7764,173.04,173.0,5.7777]
[1747402956842,63.4,173.06,172.94,1.948]
[1747402957038,5.7769,173.03,172.98,5.7782]
[1747402957242,126.8,173.02,172.93,1.15653732]
[1747402957449,126.8,173.01,172.93,1.15653732]
[1747402957645,63.4,173.0,172.93,1.15653732]
[1747402958147,16.78070902,173.08,172.93,1.15653732]
[1747402958350,126.84,173.07,172.93,1.15653732]
[1747402959045,5.7765,173.04,172.99,5.7778]
[1747402959250,126.86,173.03,172.99,5.7778]
[1747402959644,126.86,173.03,173.0,5.7777]
[1747402959844,126.86,173.03,172.93,1.15653732]
[1747402960153,126.86,173.03,172.93,64.57653732]
[1747402960852,132.6369,173.03,172.93,64.57653732]
[1747402961151,126.86,173.03,172.93,1.15653732]
[1747402961346,5.7777,173.01,172.96,5.7791]
[1747402961548,126.86,173.03,172.93,1.15653732]
[1747402961744,5.6487,173.02,172.93,1.15653732]
[1747402962350,5.7797,172.95,172.93,1.15653732]
[1747402962549,126.9,172.94,172.93,1.15653732]
[1747402962754,126.9,172.94,172.84,63.44]
[1747402962953,126.9,172.94,172.85,1.1570726]
[1747402963844,5.6487,173.02,172.85,1.1570726]
[1747402964144,5.7784,172.99,172.94,5.7795]
[1747402964454,5.7784,172.99,172.85,1.1570726]
[1747402964656,5.7792,172.96,172.85,64.6370726]
[1747402964959,126.94,172.95,172.85,64.6370726]
[1747402965149,126.94,172.95,172.94,5.7798]
[1747402965655,126.94,172.95,172.93,5.7801]
[1747402966053,126.94,172.95,172.85,63.48]
[1747402966249,5.6487,173.02,172.86,16.78070902]
[1747402966557,5.6487,173.02,172.85,63.48]
[1747402966558,5.7785,172.98,172.85,63.48]
[1747402966752,126.94,173.01,172.85,63.48]
[1747402967460,127.74,173.0,172.97,5.7785]
[1747402967659,5.7778,173.0,172.88,63.48]
[1747402967847,127.88,172.99,172.88,63.48]
[1747402968058,499.06,173.05,172.88,63.48]
[1747402968249,127.88,173.04,172.88,63.48]
[1747402968556,127.88,173.04,172.98,5.7781]
[1747402968766,5.7771,173.02,172.92,127.86]
[1747402968956,127.88,173.04,172.93,1.9929]
[1747402970258,127.88,173.04,172.97,5.7785]
[1747402970659,5.7777,173.01,172.97,5.7785]
[1747402971154,5.7772,173.02,172.98,5.7782]
[1747402971362,127.88,173.04,172.93,1.9929]
[1747402971558,127.88,173.04,172.94,1.839]
[1747402971858,5.7773,173.02,172.98,5.7782]
[1747402972158,5.7773,173.02,172.94,1.839]
[1747402972865,127.88,173.04,172.94,1.839]
[1747402973161,5.7778,173.01,172.97,5.7788]
[1747402973358,63.48,173.0,172.97,5.7788]
[1747402973556,63.48,173.0,172.94,1.839]
[1747402974054,1.00621657,173.17,172.94,1.839]
[1747402974055,3.8301,173.09,172.94,1.839]
[1747402974260,127.78,173.08,173.06,5.7757]
[1747402974959,127.78,173.08,172.97,127.82]
[1747402975963,5.7762,173.05,173.01,5.7774]
[1747402976158,63.48,173.04,173.01,5.7774]
[1747402976759,63.48,173.04,172.97,127.82]
[1747402977764,63.48,173.04,172.97,63.48]
[1747402978061,5.7772,173.02,172.94,66.119]
[1747402978461,5.7772,173.02,172.94,1.839]
[1747402978665,70.0369,173.03,172.94,1.839]
[1747402978866,64.26,173.03,172.94,1.839]
[1747402979064,64.26,173.03,173.0,5.7775]
[1747402979364,64.26,173.03,172.94,1.839]
[1747402979754,64.26,173.03,173.0,5.7776]
[1747402980666,128.38,173.04,172.94,1.839]
[1747402980870,64.26,173.04,172.94,1.839]
[1747402981062,128.36,173.04,172.94,1.839]
[1747402981764,5.7768,173.03,172.94,1.839]
[1747402982060,128.36,173.04,172.94,1.839]
[1747402982458,5.7777,173.01,172.94,1.839]
[1747402982670,128.36,173.04,172.96,5.7789]
[1747402983160,627.68,173.04,172.89,68.1544]
[1747402983366,627.68,173.04,172.93,5.7799]
[1747402983570,5.7793,172.96,172.93,5.7799]
[1747402983767,134.1393,172.96,172.93,5.7799]
[1747402983959,128.36,172.96,172.94,5.7797]
[1747402984462,128.36,172.96,172.94,5.7796]
[1747402984666,128.36,172.96,172.89,66.1639]
[1747402985163,128.36,172.96,172.92,5.7802]
[1747402985969,128.36,172.96,172.88,106.03902154]
[1747402986361,128.36,172.96,172.9,5.781]
[1747402986670,128.36,172.96,172.88,106.03902154]
[1747402987365,5.7808,172.92,172.85,66.0798]
[1747402987566,5.7808,172.92,172.88,5.7815]
[1747402987869,5.7802,172.93,172.85,1.8198]
[1747402988368,128.36,172.96,172.85,1.8198]
[1747402988564,128.36,172.96,172.84,1.815]
[1747402988565,16.78070902,172.95,172.84,5.7831]
[1747402988867,16.78070902,172.95,172.77,64.28]
[1747402988868,17.56760902,172.95,172.77,134.3386]
[1747402989070,17.56760902,172.95,172.83,5.7832]
[1747402989272,16.78070902,172.93,172.83,5.7832]
[1747402989465,516.24070902,172.93,172.83,5.7832]
[1747402989667,5.782,172.88,172.77,69.8986]
[1747402989867,128.7,172.87,172.77,69.8986]
[1747402990261,128.7,172.87,172.84,5.7831]
[1747402990466,499.46,172.93,172.77,69.8986]
[1747402990769,134.4007,172.92,172.88,5.7816]
[1747402990970,64.28,172.91,172.81,64.34]
[1747402991475,499.46,172.93,172.82,64.3]
[1747402991668,3.8053,172.98,172.82,64.3]
[1747402991873,128.66,172.97,172.82,64.3]
[1747402992066,5.7794,172.96,172.92,5.7804]
[1747402992574,128.66,172.97,172.91,5.7807]
[1747402992869,128.66,172.97,172.86,3.8448]
[1747402993274,5.7803,172.93,172.86,3.8448]
[1747402993774,128.66,172.97,172.86,3.8448]
[1747402994372,5.78,172.94,172.86,3.8448]
[1747402995373,64.3,172.94,172.86,3.8448]
[1747402995574,64.3,172.94,172.86,5.7581]
[1747402995769,5.7803,172.93,172.86,5.7581]
[1747402995978,64.3,172.94,172.86,5.7581]
[1747402996173,64.3,172.94,172.86,3.8448]
[1747402996374,64.3,172.94,172.86,1.8985]
[1747402997380,5.7802,172.93,172.89,5.7814]
[1747402997583,64.3,172.94,172.89,5.7814]
[1747402997780,64.3,172.94,172.82,66.2746]
[1747402998480,5.7814,172.9,172.87,5.782]
[1747402998682,128.54,172.89,172.82,66.2746]
[1747402998885,128.56,172.89,172.86,5.7822]
[1747402999276,128.56,172.89,172.82,66.2746]
[1747402999484,134.3415,172.89,172.86,5.7822]
[1747402999677,128.56,172.89,172.82,1.9746]
[1747402999983,134.3416,172.89,172.86,5.7824]
[1747403000281,128.56,172.89,172.82,1.9746]
[1747403001079,128.42,172.9,172.82,1.9746]
[1747403001580,128.42,172.9,172.89,5.7814]
[1747403002480,5.7798,172.94,172.91,5.7807]
[1747403002683,128.42,172.93,172.82,1.9746]
[1747403002986,128.42,172.93,172.91,5.7806]
[1747403003187,128.42,172.93,172.82,1.9746]
[1747403003188,128.42,172.93,172.83,64.3]
[1747403003482,128.4,172.95,172.92,5.7802]
[1747403003686,128.4,172.95,172.84,64.1]
[1747403003887,134.1797,172.95,172.84,64.1]
[1747403004088,64.3,172.95,172.84,64.1]
[1747403004388,64.3,172.97,172.85,16.78070902]
[1747403005481,64.3,172.97,172.84,64.1]
[1747403005890,64.3,172.97,172.92,5.7804]
[1747403006086,64.3,172.97,172.84,64.1]
[1747403006387,64.04,172.96,172.9,5.7809]
[1747403006688,5.78,172.94,172.84,64.1]
[1747403006889,64.04,172.96,172.9,5.7808]
[1747403007082,69.8193,172.96,172.84,63.96]
[1747403007287,64.04,172.96,172.84,63.96]
[1747403007587,64.04,172.96,172.93,5.7799]
[1747403007785,64.04,172.96,172.84,63.96]
[1747403008185,5.7797,172.95,172.84,63.96]
[1747403008489,64.04,172.96,172.84,63.96]
[1747403008790,5.7803,172.93,172.84,63.96]
[1747403008986,64.04,172.96,172.84,63.96]
[1747403009197,64.04,172.96,172.91,5.7805]
[1747403009492,64.04,172.96,172.84,63.96]
[1747403009694,64.04,172.96,172.92,5.7801]
[1747403009894,64.04,172.96,172.84,63.96]
[1747403009895,69.8193,172.96,172.84,63.96]
[1747403010195,127.8,172.97,172.85,11.5655]
[1747403010389,69.719,172.97,172.85,11.5655]
[1747403010590,133.559,172.97,172.85,11.5655]
[1747403010992,133.559,172.97,172.94,5.7797]
[1747403011195,127.78,172.97,172.88,127.74]
[1747403011390,127.78,172.97,172.89,3.72]
[1747403011590,127.78,172.97,172.94,5.7795]
[1747403011893,133.5588,172.97,172.94,5.7795]
[1747403012096,5.7788,172.97,172.94,5.7795]
[1747403012291,127.68,172.98,172.93,5.78]
[1747403012490,5.7797,172.95,172.89,3.72]
[1747403013088,5.7797,172.95,172.93,5.7801]
[1747403013289,127.68,172.98,172.89,3.72]
[1747403013497,499.54,173.02,172.89,3.72]
[1747403013687,5.7781,172.99,172.89,3.72]
[1747403013887,127.66,173.01,172.9,1.8373]
[1747403014188,127.66,173.01,172.94,5.7797]
[1747403014681,127.66,173.01,172.9,1.8373]
[1747403014882,127.66,173.01,172.95,5.7792]
[1747403015086,5.7783,172.99,172.9,1.8373]
[1747403015293,127.66,173.01,172.9,1.8373]
[1747403015494,63.72,173.0,172.9,1.8373]
[1747403015792,63.92,173.01,172.9,1.8373]
[1747403015993,499.54,173.02,172.91,11.5615]
[1747403016295,63.92,173.06,172.93,16.78070902]
[1747403016500,5.7751,173.08,173.05,5.7758]
[1747403016789,127.58,173.09,172.99,127.58]
[1747403017195,5.7752,173.08,172.99,127.58]
[1747403017497,127.58,173.09,172.99,127.58]
[1747403017699,127.58,173.09,173.0,3.9145]
[1747403018996,127.58,173.11,173.0,3.9145]
[1747403019295,16.78070902,173.17,173.0,3.9145]
[1747403019497,127.56,173.11,173.0,3.9145]
[1747403019798,5.7745,173.1,173.07,5.7752]
[1747403020199,127.56,173.11,173.0,3.9145]
[1747403020397,63.92,173.11,173.01,16.78070902]
[1747403021796,1.15513457,173.14,173.02,11.5541]
[1747403022099,1.15513457,173.14,173.03,63.58]
[1747403022296,1.15513457,173.14,173.05,16.78070902]
[1747403022600,1.15513457,173.14,173.06,1.9537]
[1747403022901,1.15513457,173.14,173.07,63.56]
[1747403024498,1.15513457,173.14,173.08,1.9889]
[1747403025194,1.15513457,173.14,173.11,5.774]
[1747403025399,1.15513457,173.14,173.08,1.9889]
[1747403025705,1.15513457,173.14,173.11,5.7739]
[1747403026104,1.15513457,173.14,173.08,1.9889]
[1747403027302,127.38,173.17,173.07,63.56]
[1747403027507,5.7734,173.14,173.1,5.7744]
[1747403027701,63.5,173.13,173.03,1.8883]
[1747403027900,63.5,173.13,173.03,65.3883]
[1747403028106,69.2737,173.13,173.08,5.7748]
[1747403028308,69.2737,173.13,173.03,65.3883]
[1747403028707,69.2737,173.13,173.03,1.8883]
[1747403028708,5.774,173.12,173.03,1.8883]
[1747403028907,63.5,173.13,173.03,1.8883]
[1747403029094,63.88,173.12,173.03,1.8883]
[1747403029798,69.654,173.12,173.08,5.7748]